bitfinex/quotes_ETHUSD_20260302
["timestamp","ask_amount","ask_price","bid_price","bid_amount"]
[1772431127943,0.002,1975.2,1975.0,7.44268429]
[1772431134978,6.07292423,1975.1,1974.9,0.001]
[1772431135167,6.51274001,1975.1,1974.8,0.001]
[1772431135369,0.43981578,1974.9,1974.8,0.001]
[1772431135775,6.51274001,1974.9,1974.8,0.001]
[1772431136677,6.51274001,1974.9,1974.4,0.1561732]
[1772431136877,6.07292423,1974.8,1974.4,7.59824472]
[1772431139483,6.07292423,1974.5,1974.1,1.26637542]
[1772431139650,6.07292423,1974.5,1974.0,7.44386815]
[1772431142966,6.07292423,1974.5,1974.0,1.26799031]
[1772431143172,7.33908722,1974.5,1974.0,1.26799031]
[1772431144099,6.07292423,1974.5,1974.0,1.26799031]
[1772431144265,7.33907386,1974.5,1974.0,1.26799031]
[1772431145008,6.51274001,1974.2,1974.0,0.00153886]
[1772431145371,6.51274001,1974.2,1973.6,6.17587784]
[1772431145571,6.51274001,1974.2,1973.6,7.4425929]
[1772431145775,6.07292423,1973.9,1973.5,1.26673394]
[1772431146587,6.07292423,1973.9,1973.5,7.44261178]
[1772431146980,6.07292423,1973.9,1973.5,1.26673394]
[1772431147185,6.07292423,1973.9,1973.5,7.44261178]
[1772431149882,6.07292423,1973.9,1973.7,0.001]
[1772431153801,6.07292423,1973.9,1973.4,5.06729263]
[1772431153802,6.07292423,1973.7,1973.0,2.02841821]
[1772431153992,1.56022518,1973.8,1973.0,2.02841821]
[1772431153993,6.07292423,1973.5,1973.0,6.93042733]
[1772431154303,6.04264963,1973.3,1973.0,0.75354949]
[1772431154497,6.04264963,1973.3,1973.0,0.75454949]
[1772431154711,6.04264963,1973.1,1973.0,0.75354949]
[1772431154909,5.7490168,1973.1,1973.0,0.75454949]
[1772431155219,6.04264963,1973.1,1972.6,5.95517334]
[1772431155525,6.04264963,1973.1,1972.4,5.36349119]
[1772431155526,5.7490168,1972.9,1972.4,5.95517334]
[1772431155887,6.04264963,1972.9,1972.4,5.95517334]
[1772431156083,5.7490168,1972.9,1972.4,5.95517334]
[1772431156413,1.26706231,1973.1,1972.0,7.71520438]
[1772431156414,5.7490168,1972.5,1972.1,5.95517334]
[1772431156724,5.7490168,1972.5,1972.1,6.24880617]
[1772431157221,3.02,1972.8,1972.3,6.37689755]
[1772431157422,3.02,1972.8,1972.4,6.08326472]
[1772431157717,3.02,1972.8,1972.4,6.37689755]
[1772431158017,5.77315233,1972.7,1972.2,7.64451746]
[1772431158219,5.77315233,1972.7,1972.2,7.35088463]
[1772431158389,5.77315233,1972.5,1972.2,1.26761991]
[1772431159286,5.77315233,1972.5,1972.2,7.35088463]
[1772431159494,5.77315233,1972.7,1972.2,7.35088463]
[1772431160435,5.77315233,1972.7,1972.3,6.37689755]
[1772431160617,5.77315233,1973.0,1972.5,6.08326472]
[1772431160813,6.06678516,1973.0,1972.5,6.08326472]
[1772431161311,5.77315233,1972.9,1972.5,6.08326472]
[1772431161524,5.77315233,1972.9,1972.5,7.3506914]
[1772431161732,6.06678516,1972.9,1972.4,7.35071102]
[1772431162101,5.77315233,1972.7,1972.3,1.26750676]
[1772431162322,5.77315233,1972.7,1972.3,7.35081917]
[1772431163200,5.77315233,1972.7,1972.3,1.26755445]
[1772431163522,5.77315233,1972.7,1972.2,11.15373802]
[1772431163823,5.77315233,1972.9,1972.5,6.37689755]
[1772431164002,5.77315233,1972.9,1972.5,6.08326472]
[1772431165236,5.77415233,1972.9,1972.5,6.37689755]
[1772431165541,0.001,1972.9,1972.6,6.08326472]
[1772431165748,0.001,1972.9,1972.7,1.26729862]
[1772431166239,0.001,1972.9,1972.6,6.08326472]
[1772431166419,0.001,1972.9,1972.6,7.35058401]
[1772431166810,5.77415233,1972.9,1972.3,6.08326472]
[1772431167010,5.77415233,1972.9,1972.4,6.08326472]
[1772431167314,5.77415233,1972.9,1972.4,6.37689755]
[1772431167724,5.77415233,1972.9,1972.5,1.26742712]
[1772431167919,5.77415233,1972.9,1972.5,7.35069184]
[1772431168142,6.06778516,1972.9,1972.5,6.08326472]
[1772431168914,5.77415233,1972.9,1972.5,6.08326472]
[1772431169114,5.77415233,1972.9,1972.4,7.35070841]
[1772431169316,6.06778516,1972.9,1972.4,7.35070841]
[1772431169528,5.77415233,1972.9,1972.4,7.35070841]
[1772431171165,5.77315233,1972.4,1972.2,0.0011]
[1772431173042,5.77315233,1972.3,1972.0,0.00263886]
[1772431173241,6.06678516,1972.3,1972.0,0.00263886]
[1772431173463,5.77315233,1972.3,1972.0,0.00263886]
[1772431177286,6.06678516,1972.1,1972.0,0.00263886]
[1772431177470,5.77315233,1972.1,1972.0,0.00263886]
[1772431177785,5.77315233,1972.1,1971.4,1.26813432]
[1772431177786,6.06678516,1972.1,1971.4,1.26813432]
[1772431177937,5.77315233,1971.8,1971.4,7.35139904]
[1772431178137,6.06678516,1971.8,1971.5,0.00263886]
[1772431178379,5.77315233,1971.6,1971.5,0.00263886]
[1772431178675,5.77315233,1971.6,1971.3,7.35146031]
[1772431179138,5.77315233,1971.6,1971.3,1.26819559]
[1772431179342,5.77315233,1971.6,1971.1,11.15638734]
[1772431179555,6.06678516,1971.6,1971.1,11.15638734]
[1772431179761,5.77315233,1971.6,1971.1,11.15638734]
[1772431179950,5.77315233,1971.6,1971.2,6.37689755]
[1772431180264,5.77315233,1971.6,1971.1,1.26832732]
[1772431180657,6.06678516,1971.6,1971.1,1.26832732]
[1772431181258,5.77315233,1971.6,1971.1,7.35159204]
[1772431181458,6.06678516,1971.6,1971.1,7.35159204]
[1772431181889,7.27215233,1971.8,1971.3,6.37689755]
[1772431182094,5.77315233,1971.8,1971.3,6.37689755]
[1772431182289,5.77315233,1971.8,1971.3,6.08326472]
[1772431182481,6.06678516,1971.8,1971.3,6.08326472]
[1772431182785,6.06678516,1971.8,1971.2,6.08326472]
[1772431183086,5.77315233,1971.6,1971.2,6.08326472]
[1772431183314,0.29363283,1971.8,1971.2,6.08326472]
[1772431183520,6.06678516,1972.0,1971.4,6.08326472]
[1772431183684,5.77315233,1972.2,1971.8,6.08326472]
[1772431184009,6.06678516,1972.2,1971.8,6.08326472]
[1772431185102,6.06678516,1972.2,1971.5,0.29363283]
[1772431185277,6.06678516,1972.2,1971.6,6.08326472]
[1772431185478,5.77315233,1972.2,1971.7,7.35120609]
[1772431185679,6.06678516,1972.2,1971.7,7.35120609]
[1772431186286,0.001,1972.3,1971.7,7.35120609]
[1772431186584,6.06778516,1972.3,1971.7,7.35120609]
[1772431186799,5.77415233,1972.3,1971.8,6.08326472]
[1772431187478,5.77415233,1972.3,1971.9,1.26781276]
[1772431188896,5.71450871,1972.1,1971.8,1.26782609]
[1772431189577,5.71450871,1972.1,1971.7,11.01173765]
[1772431189976,5.71450871,1972.1,1971.8,5.94007686]
[1772431190202,5.71550871,1972.3,1971.8,5.94007686]
[1772431191624,5.71550871,1972.3,1971.9,1.26891276]
[1772431192128,5.71550871,1972.3,1971.9,7.20898962]
[1772431194122,5.71450871,1972.5,1972.1,6.23370969]
[1772431194309,5.71450871,1972.5,1972.1,5.94007686]
[1772431194916,5.71450871,1972.5,1972.1,6.23370969]
[1772431195434,3.014,1972.7,1972.3,5.94007686]
[1772431195727,5.71450871,1972.6,1972.1,5.94007686]
[1772431195898,5.71450871,1972.6,1972.1,1.26768419]
[1772431196099,5.71450871,1972.6,1972.1,7.20776105]
[1772431196718,5.71450871,1972.6,1972.1,7.50139388]
[1772431196917,5.71450871,1972.6,1972.2,5.94007686]
[1772431198325,6.00814154,1972.8,1972.3,7.2076325]
[1772431198918,5.71450871,1972.8,1972.3,7.2076325]
[1772431199330,5.71450871,1972.8,1972.3,1.20755564]
[1772431199538,5.71450871,1972.8,1972.3,7.1476325]
[1772431199727,6.00814154,1972.8,1972.3,7.1476325]
[1772431200298,5.71450871,1972.7,1972.3,7.44126533]
[1772431200519,5.71550871,1972.9,1972.4,5.94007686]
[1772431200716,6.00814154,1972.7,1972.2,7.20766056]
[1772431201107,5.71450871,1972.7,1972.2,7.20766056]
[1772431201635,6.00814154,1972.7,1972.2,7.20766056]
[1772431201929,7.2763233,1972.9,1972.2,1.56121653]
[1772431202141,0.00153886,1973.0,1972.6,6.26387707]
[1772431202336,0.00153886,1973.0,1972.7,7.23754286]
[1772431202636,0.77700637,1973.0,1972.7,7.23754286]
[1772431202800,0.77546751,1972.7,1972.3,5.97024424]
[1772431203002,1.07272561,1972.5,1972.1,5.97024424]
[1772431203205,0.29363283,1972.4,1972.1,5.97024424]
[1772431203400,0.29363283,1972.3,1971.9,7.23913643]
[1772431203632,0.29363283,1972.3,1971.9,5.97134424]
[1772431203804,0.77909278,1972.5,1972.0,5.97024424]
[1772431204005,0.9511286,1972.4,1972.0,5.97024424]
[1772431204202,0.9511286,1972.4,1971.9,0.0011]
[1772431204203,2.51229281,1972.4,1971.9,0.0011]
[1772431204417,0.9511286,1972.3,1971.9,0.0011]
[1772431204835,1.24476143,1972.2,1971.9,0.0011]
[1772431205245,1.24774583,1972.1,1971.9,0.0011]
[1772431205537,0.954113,1972.1,1971.8,0.0011]
[1772431206204,0.29363283,1972.2,1971.8,0.0011]
[1772431206205,1.24963375,1971.9,1971.8,0.0011]
[1772431206405,0.95600092,1971.8,1971.7,0.0011]
[1772431208534,0.96172525,1971.7,1971.5,0.0011]
[1772431209121,1.25535808,1971.7,1971.5,0.0011]
[1772431210230,0.96705446,1971.6,1971.5,0.0011]
[1772431210442,2.52869297,1971.6,1971.0,7.2406655]
[1772431210750,2.23506014,1971.6,1971.0,7.2406655]
[1772431212570,0.44152125,1971.3,1971.0,0.00153886]
[1772431212714,0.9720905,1971.6,1971.1,5.97079424]
[1772431213048,0.97447593,1971.5,1971.0,5.9723331]
[1772431213349,0.44152125,1971.4,1971.0,5.9723331]
[1772431214523,1.70968933,1971.4,1971.0,5.9723331]
[1772431214723,0.44152125,1971.4,1971.0,5.9723331]
[1772431214924,2.24259718,1971.5,1971.0,7.24072151]
[1772431216445,0.44152125,1972.0,1971.3,6.33767805]
[1772431216665,2.25594364,1972.0,1971.5,6.33767805]
[1772431217017,2.69746489,1972.0,1971.3,7.60583001]
[1772431217751,2.74077293,1971.8,1971.3,6.33767805]
[1772431218144,2.74077293,1971.8,1971.3,7.60587433]
[1772431218448,2.74077293,1971.8,1971.3,7.60585182]
[1772431218741,2.29925168,1971.8,1971.3,7.60585182]
[1772431218912,2.29925168,1971.8,1971.4,0.0011]
[1772431219116,1.26789391,1971.8,1971.4,0.0011]
[1772431219317,2.30929374,1971.6,1971.3,0.0011]
[1772431219542,2.30929374,1971.4,1971.0,0.00153886]
[1772431219949,2.30929374,1971.5,1971.1,0.0011]
[1772431221018,3.58009616,1971.3,1971.1,0.0011]
[1772431222048,2.31451311,1971.2,1971.1,0.0011]
[1772431223032,3.58277609,1971.2,1971.1,0.0011]
[1772431223631,1.26806999,1971.5,1971.1,0.0011]
[1772431223835,3.58731534,1971.8,1971.2,6.38560769]
[1772431224142,5.33041954,1971.7,1971.2,6.38560769]
[1772431224321,4.27888722,1971.8,1971.2,6.38560769]
[1772431224952,1.26790492,1971.8,1971.2,7.65382644]
[1772431225523,6.59963881,1971.9,1971.2,7.65382644]
[1772431226354,5.33182257,1971.9,1971.2,7.65382644]
[1772431226530,1.26775715,1972.0,1971.2,7.65382644]
[1772431226919,3.5940191,1972.0,1971.2,7.65382644]
[1772431227531,1.26773265,1972.1,1971.2,7.65382644]
[1772431227751,4.27673265,1972.1,1971.2,7.65382644]
[1772431228668,6.60326542,1972.1,1971.2,7.65382644]
[1772431230059,2.32653277,1972.0,1971.2,7.65382644]
[1772431231645,3.59431819,1972.0,1971.4,6.38560769]
[1772431231978,3.59531819,1972.0,1971.4,6.38560769]
[1772431232574,2.32653277,1971.9,1971.4,6.38560769]
[1772431233743,2.32653277,1971.9,1971.5,7.65367768]
[1772431233943,0.001,1972.0,1971.5,7.65367768]
[1772431235563,2.32653277,1971.9,1971.3,6.38670769]
[1772431235763,3.59438139,1971.9,1971.3,7.65489621]
[1772431238363,3.59285986,1971.9,1971.4,6.38560769]
[1772431238872,2.32501124,1971.8,1971.3,0.0011]
[1772431239076,2.32501124,1971.8,1971.3,7.65490402]
[1772431239268,2.32501124,1971.8,1971.3,6.38670769]
[1772431239601,2.32501124,1971.8,1971.3,7.65490117]
[1772431240071,2.32501124,1971.8,1971.3,7.65490173]
[1772431240470,3.59290352,1971.8,1971.3,7.65490173]
[1772431242349,1.26789228,1971.8,1971.3,7.65490173]
[1772431243177,5.07127009,1971.9,1971.3,7.65490173]
[1772431243474,7.39628133,1971.9,1971.3,6.38670769]
[1772431244246,2.32501124,1971.8,1971.3,0.0011]
[1772431244854,4.38505978,1971.7,1971.3,0.0011]
[1772431245059,4.38505978,1971.7,1971.4,0.0011]
[1772431245257,1.26800568,1971.6,1971.4,0.0011]
[1772431245456,1.26800568,1971.6,1971.3,0.0011]
[1772431245658,2.06004854,1971.5,1971.2,6.38670769]
[1772431246152,2.06004854,1971.5,1971.1,6.38560769]
[1772431247368,1.26813432,1971.4,1971.1,6.38560769]
[1772431248050,7.7393769,1971.4,1971.0,0.00153886]
[1772431248682,7.7393769,1971.4,1971.0,6.47314113]
[1772431248853,10.7413769,1971.4,1971.0,6.47314113]
[1772431251889,1.26826298,1971.2,1971.0,0.00153886]
[1772431252082,7.73950556,1971.2,1971.0,0.00153886]
[1772431252289,7.73950556,1971.2,1970.5,0.1561732]
[1772431252290,8.53129112,1971.1,1970.6,6.47160227]
[1772431252469,2.06004854,1970.9,1970.6,6.47160227]
[1772431253184,8.53129112,1970.9,1970.5,0.1561732]
[1772431254160,1.26852039,1970.8,1970.5,0.1561732]
[1772431254362,7.73976297,1970.8,1970.5,0.1561732]
[1772431255164,6.47124258,1970.8,1970.5,0.1561732]
[1772431256063,10.74861016,1971.1,1970.6,6.47160227]
[1772431256462,6.47124258,1971.0,1970.6,6.47160227]
[1772431256697,6.47124258,1971.0,1970.5,0.1561732]
[1772431256898,6.47124258,1970.9,1970.5,0.1561732]
[1772431258168,7.73976297,1970.8,1970.5,0.1561732]
[1772431258575,7.73976297,1970.8,1970.6,0.0011]
[1772431259288,6.47224258,1971.9,1970.8,6.47160227]
[1772431259475,2.06004854,1971.1,1970.8,6.47160227]
[1772431259673,6.47124258,1971.0,1970.6,0.0011]
[1772431260502,12.81074715,1970.9,1970.5,0.1572732]
[1772431260680,8.53129112,1970.7,1970.2,6.47160227]
[1772431261002,2.06004854,1970.8,1970.2,6.47160227]
[1772431261502,2.06004854,1970.8,1970.0,6.47314113]
[1772431261503,2.06004854,1970.4,1970.0,6.47314113]
[1772431261702,5.07204854,1970.4,1970.0,6.47314113]
[1772431262014,2.06004854,1970.2,1969.2,7.74115335]
[1772431262208,11.54329112,1970.4,1969.2,7.74115335]
[1772431262706,4.0418423,1970.3,1969.2,7.74115335]
[1772431263211,10.51308488,1970.3,1969.2,7.74115335]
[1772431263896,4.0418423,1970.3,1969.3,6.47160227]
[1772431265188,4.0418423,1970.3,1969.5,6.47160227]
[1772431265603,2.06004854,1970.1,1969.5,6.47160227]
[1772431265806,2.06004854,1970.1,1969.3,5.07768863]
[1772431265807,8.53129112,1969.9,1969.3,6.47160227]
[1772431266012,3.01,1969.8,1969.3,6.47160227]
[1772431266899,5.07004854,1969.8,1969.3,6.47160227]
[1772431267508,12.81050911,1969.8,1969.3,6.47160227]
[1772431267717,10.75046057,1969.8,1969.3,6.47160227]
[1772431268594,5.07650574,1969.9,1969.0,5.08014907]
[1772431268595,3.011,1969.9,1969.1,7.74116886]
[1772431268902,11.31980462,1970.8,1969.1,7.74116886]
[1772431268903,6.47124258,1970.3,1969.7,6.47160227]
[1772431269080,3.011,1970.2,1969.7,6.47160227]
[1772431269480,3.011,1970.2,1969.7,7.74077614]
[1772431270612,8.53129112,1970.1,1969.5,6.47160227]
[1772431270913,6.47124258,1970.0,1969.4,7.74097756]
[1772431271480,6.47124258,1970.0,1969.3,0.0011]
[1772431271481,7.74032554,1970.0,1969.3,0.0011]
[1772431271712,6.47124258,1969.8,1969.3,6.47270227]
[1772431271884,3.009,1969.7,1969.3,0.0011]
[1772431272313,5.06904854,1969.7,1969.3,0.0011]
[1772431272510,4.48382222,1969.7,1969.3,0.0011]
[1772431274109,3.009,1969.7,1969.3,0.0011]
[1772431274295,3.01,1969.8,1969.3,6.47270227]
[1772431275493,1.47482222,1969.6,1969.3,0.0011]
[1772431276799,2.74414858,1969.6,1969.3,0.0011]
[1772431277332,1.47482222,1969.6,1969.3,0.0011]
[1772431277644,2.74411712,1969.6,1969.3,0.0011]
[1772431279093,8.98451507,1969.6,1969.3,0.0011]
[1772431279295,1.47482222,1969.4,1969.2,0.0011]
[1772431279499,3.013,1969.3,1969.2,0.0011]
[1772431282296,3.016,1969.5,1969.2,6.14849018]
[1772431283042,4.49082222,1969.5,1969.2,0.0011]
[1772431283199,4.49082222,1969.5,1969.0,0.00153886]
[1772431283200,2.74429381,1969.4,1969.0,0.00153886]
[1772431283829,9.19004239,1970.0,1969.0,6.14892904]
[1772431284152,7.28559296,1969.9,1969.3,0.0011]
[1772431284427,0.001,1969.5,1969.3,0.0011]
[1772431284826,3.017,1969.5,1969.3,0.0011]
[1772431285121,3.015,1970.0,1969.5,6.14739018]
[1772431286726,4.28404508,1970.0,1969.5,6.14739018]
[1772431288305,1.47482222,1969.9,1969.3,6.14849018]
[1772431288829,1.47482222,1969.7,1969.3,6.14849018]
[1772431289012,7.71522017,1969.7,1969.3,0.0011]
[1772431289405,8.98451183,1969.7,1969.3,0.0011]
[1772431289616,6.24039795,1969.6,1969.3,0.0011]
[1772431290714,6.24039795,1969.5,1969.3,0.0011]
[1772431291531,6.24039795,1969.7,1969.3,0.0011]
[1772431291703,3.016,1969.6,1969.3,0.0011]
[1772431293739,6.24039795,1969.7,1969.3,0.0011]
[1772431294046,3.016,1969.9,1969.3,6.14849018]
[1772431294210,6.24039795,1969.8,1969.3,6.14849018]
[1772431295138,6.24039795,1969.8,1969.3,0.0011]
[1772431295334,5.00727585,1969.8,1969.3,0.0011]
[1772431295824,3.03193973,1969.7,1969.3,6.14849018]
[1772431296029,3.03193973,1969.6,1969.3,6.14849018]
[1772431296217,3.03193973,1969.5,1969.3,6.14849018]
[1772431296540,7.43282763,1969.8,1969.4,0.0011]
[1772431296840,0.001,1969.5,1969.4,0.0011]
[1772431297733,1.26911136,1969.9,1969.4,6.14849018]
[1772431299143,7.50950931,1969.9,1969.4,6.14849018]
[1772431300856,7.50950931,1969.9,1969.4,0.0011]
[1772431301350,5.07592165,1970.1,1969.4,0.0011]
[1772431301351,1.26897111,1970.1,1969.5,6.14739018]
[1772431301647,6.24039795,1970.0,1969.4,0.0011]
[1772431302625,7.5094979,1969.9,1969.4,0.0011]
[1772431303643,7.5094979,1969.9,1969.4,6.14849018]
[1772431309754,7.5094979,1969.9,1969.4,7.41791167]
[1772431310559,7.5094979,1969.9,1969.4,6.14849018]
[1772431310760,0.001,1969.8,1969.4,6.14849018]
[1772431311338,6.02085677,1969.8,1969.4,0.0011]
[1772431312541,6.02085677,1969.8,1969.4,6.15185799]
[1772431313571,7.29006721,1969.8,1969.4,6.15185799]
[1772431314439,0.29488525,1969.7,1969.4,6.15185799]
[1772431315772,1.56412608,1969.7,1969.4,6.15185799]
[1772431317742,0.001,1969.8,1969.4,7.42127359]
[1772431317968,6.31574202,1969.8,1969.4,6.15185799]
[1772431318172,6.31474202,1969.5,1969.0,0.00153886]
[1772431318346,0.29488525,1969.2,1969.0,0.00153886]
[1772431318542,6.01985677,1969.3,1968.6,6.15075799]
[1772431318745,6.01985677,1969.1,1968.6,6.15075799]
[1772431318946,1.47522729,1969.0,1968.6,6.15075799]
[1772431319139,6.01985677,1969.1,1968.6,6.15075799]
[1772431319686,7.49508406,1968.7,1968.1,6.15075799]
[1772431319871,7.28979479,1968.6,1968.0,0.77465814]
[1772431320073,7.28979479,1968.6,1968.0,2.04497587]
[1772431320275,7.28979479,1968.6,1968.0,8.19573386]
[1772431320574,1.26991891,1968.7,1968.1,6.15075799]
[1772431321970,3.03,1969.1,1968.2,7.4209541]
[1772431322249,6.01985677,1969.4,1968.6,6.15075799]
[1772431322367,1.2693577,1969.5,1968.6,6.15075799]
[1772431322569,8.44285677,1969.6,1968.6,7.62598528]
[1772431322800,10.32005893,1969.8,1968.9,6.15075799]
[1772431322958,10.32005893,1969.8,1969.1,0.0011]
[1772431323691,1.47522729,1969.6,1969.1,0.0011]
[1772431323982,1.2693577,1969.5,1969.1,0.0011]
[1772431324187,1.47522729,1969.6,1969.1,0.0011]
[1772431324382,2.74453629,1969.6,1969.1,0.0011]
[1772431324757,1.269309,1969.6,1969.1,6.15185799]
[1772431325161,4.30021556,1969.8,1969.1,6.15185799]
[1772431325389,1.27021556,1969.8,1969.1,6.15185799]
[1772431326758,0.001,1969.8,1969.2,7.42030907]
[1772431328293,0.00153886,1970.0,1969.5,6.15075799]
[1772431328464,0.00153886,1970.0,1969.7,6.15075799]
[1772431328663,0.83634209,1969.5,1969.1,0.0011]
[1772431328894,4.29714938,1969.9,1969.1,7.42146477]
[1772431329272,1.47522729,1969.8,1969.1,6.15185799]
[1772431329566,6.01985677,1969.8,1969.1,6.15185799]
[1772431330907,1.26922881,1969.7,1969.1,6.15185799]
[1772431332285,1.26922881,1969.7,1969.1,7.42147349]
[1772431333182,5.07691526,1969.8,1969.1,7.42147349]
[1772431333384,5.07691526,1969.8,1969.1,6.15185799]
[1772431333577,5.07691526,1969.8,1969.1,7.42147334]
[1772431335286,0.001,1969.7,1969.1,7.42147334]
[1772431335492,0.001,1969.7,1969.2,6.2000404]
[1772431336812,2.06408325,1969.6,1969.1,0.0011]
[1772431336984,5.89709204,1969.5,1969.1,0.0011]
[1772431338332,1.26940223,1969.5,1969.1,6.34995767]
[1772431340617,1.27028036,1969.7,1969.1,7.61957184]
[1772431341297,1.27023547,1969.7,1969.1,7.61957184]
[1772431341621,7.13836211,1969.7,1969.1,9.05195767]
[1772431342501,7.13836211,1969.7,1969.1,10.32157072]
[1772431342702,7.13836211,1969.7,1969.2,6.34885767]
[1772431343100,1.27023547,1969.7,1969.2,6.34885767]
[1772431345065,1.27023547,1969.7,1969.2,7.61836035]
[1772431345369,1.27023547,1969.7,1969.2,6.34885767]
[1772431345526,7.13836211,1969.7,1969.2,6.34885767]
[1772431347172,5.86812664,1969.5,1969.1,0.0011]
[1772431348729,7.13836211,1969.7,1969.1,6.92093233]
[1772431349129,7.13836211,1969.7,1969.2,0.0011]
[1772431349330,0.001,1969.6,1969.2,5.65132511]
[1772431349525,0.001,1969.6,1969.2,0.0011]
[1772431349526,5.86912664,1969.6,1969.2,0.0011]
[1772431351557,7.1384732,1969.6,1969.2,0.0011]
[1772431354873,7.1384732,1969.6,1969.2,5.65132511]
[1772431355778,0.001,1969.6,1969.2,6.92087618]
[1772431356784,1.27029567,1969.6,1969.2,5.65132511]
[1772431357583,0.001,1969.6,1969.2,6.92086861]
[1772431357949,0.001,1969.6,1969.2,5.65132511]
[1772431361029,5.86912664,1969.6,1969.2,5.65132511]
[1772431363024,7.13845096,1969.6,1969.3,0.0011]
[1772431363192,0.001,1969.5,1969.3,0.0011]
[1772431366435,0.001,1969.5,1969.3,5.65132511]
[1772431367141,0.001,1969.7,1969.4,5.65022511]
[1772431367532,1.27023643,1969.7,1969.4,5.65022511]
[1772431367741,7.68442469,1969.7,1969.4,5.65022511]
[1772431368122,7.68442101,1969.7,1969.4,5.65022511]
[1772431368945,6.41418826,1969.5,1969.2,5.65132511]
[1772431369112,0.44233461,1969.4,1969.2,0.0011]
[1772431370207,6.85652287,1969.4,1969.2,0.0011]
[1772431370409,6.41418826,1969.2,1968.9,0.0011]
[1772431371616,8.12598793,1969.4,1968.9,5.65132511]
[1772431371818,7.68352869,1969.6,1968.9,5.65132511]
[1772431372045,0.001,1969.7,1969.1,5.65022511]
[1772431372346,7.68442272,1969.7,1969.3,5.65022511]
[1772431372544,7.68442272,1969.7,1969.2,8.36222511]
[1772431372923,7.68442272,1969.7,1969.2,2.712]
[1772431373122,7.68442272,1969.7,1969.3,5.65022511]
[1772431373541,7.68442272,1969.7,1969.2,2.712]
[1772431374040,7.68442272,1969.7,1969.2,8.36222511]
[1772431374354,6.85652287,1969.4,1969.1,2.712]
[1772431374756,6.41418826,1969.4,1969.1,2.712]
[1772431374915,7.6836114,1969.4,1969.1,2.712]
[1772431375114,7.6836114,1969.4,1969.0,8.36222511]
[1772431375524,6.41418826,1969.4,1969.0,9.63190486]
[1772431376643,6.41418826,1969.4,1969.2,0.0011]
[1772431378227,0.001,1969.5,1969.2,5.62143608]
[1772431379545,0.001,1969.5,1969.2,6.89098413]
[1772431379747,0.001,1969.5,1969.2,5.62143608]
[1772431380326,0.001,1969.5,1969.2,6.89098686]
[1772431380528,0.001,1969.7,1969.3,5.58316099]
[1772431380750,0.001,1969.7,1969.5,5.58316099]
[1772431381755,6.85652287,1969.6,1969.2,5.56596454]
[1772431381958,6.85652287,1969.6,1969.3,2.714]
[1772431382129,6.41518826,1969.7,1969.3,8.26070114]
[1772431382328,6.41518826,1969.7,1969.4,5.54670114]
[1772431383237,0.001,1969.7,1969.4,5.54670114]
[1772431383446,0.44387347,1970.0,1969.4,5.54670114]
[1772431383447,0.00153886,1970.0,1969.5,5.52766935]
[1772431383648,0.00153886,1970.0,1969.7,5.52766935]
[1772431383854,0.00153886,1970.0,1969.8,8.24266935]
[1772431384632,0.00153886,1970.0,1969.9,5.50985555]
[1772431385263,0.001,1970.3,1970.0,5.49216551]
[1772431385644,0.001,1970.3,1970.0,6.76115627]
[1772431386141,0.001,1970.3,1970.2,5.47458669]
[1772431386340,6.41518826,1970.3,1970.0,2.717]
[1772431386652,6.41418826,1970.0,1969.3,8.19158669]
[1772431387242,0.001,1970.3,1969.3,5.47458669]
[1772431387243,6.41418826,1969.8,1969.3,5.47458669]
[1772431387441,6.41418826,1969.8,1969.3,8.19158669]
[1772431387661,6.41418826,1969.6,1969.2,2.7181]
[1772431388545,6.41418826,1969.6,1969.5,0.0011]
[1772431389364,6.41418826,1969.6,1969.2,0.0011]
[1772431389911,7.68354596,1969.5,1969.2,0.0011]
[1772431390362,6.41418826,1969.5,1969.2,0.0011]
[1772431391064,1.26929592,1969.6,1969.2,5.39149109]
[1772431391236,7.68345595,1969.7,1969.2,5.39149109]
[1772431392269,7.68345595,1969.7,1969.2,6.6443906]
[1772431392436,7.68345595,1969.7,1969.2,5.37485689]
[1772431392636,7.68345595,1969.7,1969.2,0.0011]
[1772431398974,8.11281244,1970.2,1969.3,5.2550354]
[1772431398975,5.93856168,1970.1,1969.3,5.2550354]
[1772431400142,5.93856168,1969.9,1969.3,5.2550354]
[1772431400347,5.93856168,1969.9,1969.2,2.86464519]
[1772431400348,5.93856168,1969.7,1969.2,2.86464519]
[1772431400579,5.93856168,1969.7,1969.3,0.0011]
[1772431400775,0.001,1969.6,1969.3,5.22891884]
[1772431401448,0.001,1969.6,1969.3,7.93991884]
[1772431401647,0.001,1969.6,1969.3,2.7121]
[1772431401874,5.93956168,1969.6,1969.3,0.0011]
[1772431403349,7.20891896,1969.6,1969.3,0.0011]
[1772431406282,7.2076064,1970.0,1969.3,0.0011]
[1772431406482,5.93856168,1969.5,1969.3,0.0011]
[1772431406993,1.4745949,1969.6,1969.0,0.00263886]
[1772431406994,5.93856168,1969.3,1969.0,0.00263886]
[1772431408617,5.93856168,1969.2,1968.0,0.77465814]
[1772431408759,5.93856168,1969.2,1967.0,9.07452078]
[1772431408760,7.41315658,1968.3,1967.4,6.37993816]
[1772431409078,5.93856168,1968.3,1967.5,5.88391603]
[1772431409456,5.93856168,1968.1,1967.5,0.77465814]
[1772431411790,1.2703252,1968.0,1967.5,0.77465814]
[1772431412656,7.20888688,1968.0,1967.5,0.77465814]
[1772431412883,7.20888688,1968.0,1967.5,0.77575814]
[1772431413105,5.93856168,1967.8,1967.5,1e-08]
[1772431413254,1.2703252,1968.0,1967.0,0.00153886]
[1772431413255,5.93856168,1967.5,1967.0,0.00153886]
[1772431413462,1.4745949,1967.6,1967.0,0.00153886]
[1772431413463,5.93856168,1967.2,1967.0,0.00153886]
[1772431413685,1.27090641,1967.1,1967.0,0.00153886]
[1772431413881,1.27081815,1967.3,1967.0,0.00153886]
[1772431414289,5.93856168,1967.1,1966.6,0.1561732]
[1772431414491,4.5235949,1967.2,1966.0,2.70853886]
[1772431414492,5.93856168,1966.7,1966.0,2.70853886]
[1772431414665,1.4745949,1966.5,1966.0,2.70853886]
[1772431414862,5.93856168,1966.1,1964.7,5.08979324]
[1772431415067,2.9491898,1966.4,1965.4,5.06000535]
[1772431415068,7.41315658,1966.4,1965.4,5.06000535]
[1772431415266,5.93856168,1966.9,1965.6,5.06000535]
[1772431415677,5.93856168,1966.7,1965.7,5.06000535]
[1772431415882,5.93856168,1966.7,1965.5,1.27189244]
[1772431416080,5.93856168,1966.7,1965.4,11.78696587]
[1772431416081,5.93856168,1966.7,1965.4,1.639]
[1772431416277,7.41315658,1966.1,1965.1,6.32347057]
[1772431416509,5.93856168,1965.9,1965.0,2.11477278]
[1772431416825,7.41315658,1965.9,1965.0,7.1660906]
[1772431417160,7.41315658,1965.9,1965.0,1.27377278]
[1772431417402,7.41315658,1965.9,1965.0,1.27378614]